[Event "Titled Tuesday Blitz June 6 Early 2023"]
[White "Abdilkhair, Abilmansur"]
[Black "LeoLV10"]
[WhiteFideId "13716417"]
[WhiteElo "2210"]
[BlackElo "2397"]
[Result "1/2-1/2"]
[Round "1"]
[TimeControl "180+2"]
[Date "2023.06.06"]
[WhiteClock "0:01:03"]
[BlackClock "0:01:17"]
[Board "96"]

1. e4 {[%clk 0:02:59]}  c6 {[%clk 0:02:52]} 2. d4 {[%clk 0:02:58]}  d5 {[%clk 0:02:53]} 3. Nc3 {[%clk 0:02:59]}  dxe4 {[%clk 0:02:53]} 4. Nxe4 {[%clk 0:03:00]}  Nf6 {[%clk 0:02:53]} 5. Nxf6+ {[%clk 0:03:00]}  exf6 {[%clk 0:02:54]} 6. c3 {[%clk 0:03:01]}  Bd6 {[%clk 0:02:52]} 7. Bd3 {[%clk 0:03:02]}  O-O {[%clk 0:02:51]} 8. Qc2 {[%clk 0:03:02]}  Re8+ {[%clk 0:02:51]} 9. Ne2 {[%clk 0:03:01]}  h5 {[%clk 0:02:51]} 10. Be3 {[%clk 0:03:01]}  Nd7 {[%clk 0:02:52]} 11. O-O-O {[%clk 0:03:01]}  Nf8 {[%clk 0:02:51]} 12. h3 {[%clk 0:03:00]}  b5 {[%clk 0:02:49]} 13. g4 {[%clk 0:03:00]}  h4 {[%clk 0:02:48]} 14. Rhg1 {[%clk 0:02:57]}  a5 {[%clk 0:02:42]} 15. g5 {[%clk 0:02:57]}  f5 {[%clk 0:02:42]} 16. Bxf5 {[%clk 0:02:56]}  Bxf5 {[%clk 0:02:43]} 17. Qxf5 {[%clk 0:02:56]}  Ng6 {[%clk 0:02:42]} 18. Kb1 {[%clk 0:02:43]}  a4 {[%clk 0:02:39]} 19. a3 {[%clk 0:02:43]}  Qe7 {[%clk 0:02:27]} 20. Rg4 {[%clk 0:02:32]}  Reb8 {[%clk 0:02:26]} 21. Qe4 {[%clk 0:02:17]}  Bxa3 {[%clk 0:02:15]} 22. Qxe7 {[%clk 0:01:58]}  Bxe7 {[%clk 0:02:14]} 23. d5 {[%clk 0:01:59]}  cxd5 {[%clk 0:02:10]} 24. Rxd5 {[%clk 0:02:00]}  b4 {[%clk 0:02:10]} 25. cxb4 {[%clk 0:01:56]}  Bxb4 {[%clk 0:02:11]} 26. Rdd4 {[%clk 0:01:53]}  Ba3 {[%clk 0:02:00]} 27. Bc1 {[%clk 0:01:39]}  Bxb2 {[%clk 0:02:00]} 28. Bxb2 {[%clk 0:01:40]}  a3 {[%clk 0:02:00]} 29. Rb4 {[%clk 0:01:39]}  axb2 {[%clk 0:02:00]} 30. Kxb2 {[%clk 0:01:26]}  Rxb4+ {[%clk 0:01:59]} 31. Rxb4 {[%clk 0:01:26]}  Re8 {[%clk 0:01:59]} 32. Nf4 {[%clk 0:01:26]}  Ne5 {[%clk 0:01:57]} 33. Kc3 {[%clk 0:01:23]}  Nf3 {[%clk 0:01:53]} 34. g6 {[%clk 0:01:22]}  Rc8+ {[%clk 0:01:48]} 35. Kd3 {[%clk 0:01:16]}  Ne5+ {[%clk 0:01:48]} 36. Ke4 {[%clk 0:01:16]}  Nxg6 {[%clk 0:01:38]} 37. Nxg6 {[%clk 0:01:16]}  fxg6 {[%clk 0:01:38]} 38. Kf4 {[%clk 0:01:16]}  Rc5 {[%clk 0:01:37]} 39. Kg4 {[%clk 0:01:14]}  g5 {[%clk 0:01:36]} 40. Kh5 {[%clk 0:01:14]}  Kh7 {[%clk 0:01:36]} 41. Rb7 {[%clk 0:01:12]}  Rf5 {[%clk 0:01:36]} 42. Ra7 {[%clk 0:01:05]}  Rxf2 {[%clk 0:01:24]} 43. Kxg5 {[%clk 0:01:04]}  Rg2+ {[%clk 0:01:24]} 44. Kxh4 {[%clk 0:01:04]}  Kh6 {[%clk 0:01:25]} 45. Ra6+ {[%clk 0:01:03]}  g6 {[%clk 0:01:25]} 46. Rb6 {[%clk 0:01:04]}  Rg1 {[%clk 0:01:20]} 47. Rxg6+ {[%clk 0:01:03]}  Kxg6 {[%clk 0:01:17]} 1/2-1/2


[Site "https://www.chess.com"]

[Event "Titled Tuesday Blitz June 6 Early 2023"]
[White "Malek, Jan"]
[Black "Moore, Nicholas"]
[WhiteFideId "21864080"]
[BlackFideId "4303709"]
[WhiteElo "2255"]
[BlackElo "2389"]
[Result "0-1"]
[Round "1"]
[TimeControl "180+2"]
[Date "2023.06.06"]
[WhiteClock "0:01:14"]
[BlackClock "0:00:13"]
[Board "100"]

1. f4 {[%clk 0:02:59]}  d5 {[%clk 0:02:58]} 2. Nf3 {[%clk 0:02:58]}  Bf5 {[%clk 0:02:54]} 3. g3 {[%clk 0:02:58]}  Nf6 {[%clk 0:02:53]} 4. Bg2 {[%clk 0:02:58]}  e6 {[%clk 0:02:51]} 5. d3 {[%clk 0:02:58]}  Nbd7 {[%clk 0:02:47]} 6. O-O {[%clk 0:02:58]}  c6 {[%clk 0:02:44]} 7. Nc3 {[%clk 0:02:54]}  Bd6 {[%clk 0:02:42]} 8. Qe1 {[%clk 0:02:54]}  Bg4 {[%clk 0:02:22]} 9. e4 {[%clk 0:02:42]}  Bxf3 {[%clk 0:02:19]} 10. Bxf3 {[%clk 0:02:42]}  dxe4 {[%clk 0:02:18]} 11. dxe4 {[%clk 0:02:43]}  e5 {[%clk 0:02:17]} 12. Be3 {[%clk 0:02:42]}  Qe7 {[%clk 0:02:11]} 13. Rd1 {[%clk 0:02:42]}  Bc5 {[%clk 0:02:10]} 14. Kh1 {[%clk 0:02:35]}  Bxe3 {[%clk 0:02:05]} 15. Qxe3 {[%clk 0:02:36]}  O-O {[%clk 0:02:01]} 16. Rd2 {[%clk 0:02:33]}  Nb6 {[%clk 0:01:51]} 17. b3 {[%clk 0:02:32]}  Rad8 {[%clk 0:01:48]} 18. Rfd1 {[%clk 0:02:32]}  Rxd2 {[%clk 0:01:47]} 19. Rxd2 {[%clk 0:02:33]}  exf4 {[%clk 0:01:24]} 20. Qxf4 {[%clk 0:02:34]}  Rd8 {[%clk 0:01:19]} 21. Kg2 {[%clk 0:02:22]}  Rxd2+ {[%clk 0:01:16]} 22. Qxd2 {[%clk 0:02:23]}  Nbd7 {[%clk 0:01:12]} 23. Ne2 {[%clk 0:02:19]}  Nxe4 {[%clk 0:01:06]} 24. Qe3 {[%clk 0:02:15]}  f5 {[%clk 0:01:03]} 25. Qxa7 {[%clk 0:02:13]}  Nd6 {[%clk 0:00:57]} 26. Qd4 {[%clk 0:02:06]}  Qe5 {[%clk 0:00:49]} 27. a4 {[%clk 0:01:59]}  Qxd4 {[%clk 0:00:47]} 28. Nxd4 {[%clk 0:02:00]}  Kf7 {[%clk 0:00:44]} 29. Kf2 {[%clk 0:02:00]}  Kf6 {[%clk 0:00:43]} 30. Ke3 {[%clk 0:02:00]}  Ke5 {[%clk 0:00:41]} 31. Bg2 {[%clk 0:01:58]}  g5 {[%clk 0:00:38]} 32. Nf3+ {[%clk 0:01:58]}  Kf6 {[%clk 0:00:38]} 33. Kd4 {[%clk 0:01:58]}  h6 {[%clk 0:00:27]} 34. Nd2 {[%clk 0:01:58]}  Ne5 {[%clk 0:00:24]} 35. c4 {[%clk 0:01:55]}  f4 {[%clk 0:00:22]} 36. gxf4 {[%clk 0:01:52]}  gxf4 {[%clk 0:00:23]} 37. a5 {[%clk 0:01:47]}  Ng4 {[%clk 0:00:20]} 38. Kc5 {[%clk 0:01:45]}  Nc8 {[%clk 0:00:19]} 39. Bh3 {[%clk 0:01:42]}  h5 {[%clk 0:00:18]} 40. Nf3 {[%clk 0:01:40]}  Kf5 {[%clk 0:00:18]} 41. Nd4+ {[%clk 0:01:40]}  Ke4 {[%clk 0:00:18]} 42. Bg2+ {[%clk 0:01:37]}  Ke3 {[%clk 0:00:18]} 43. h3 {[%clk 0:01:33]}  Ne5 {[%clk 0:00:18]} 44. Nf5+ {[%clk 0:01:29]}  Kf2 {[%clk 0:00:15]} 45. Be4 {[%clk 0:01:29]}  f3 {[%clk 0:00:15]} 46. Nd6 {[%clk 0:01:27]}  Ke3 {[%clk 0:00:13]} 47. Bxf3 {[%clk 0:01:14]}  Nd3# {[%clk 0:00:13]} 0-1


[Site "https://www.chess.com"]

[Event "Titled Tuesday Blitz June 6 Early 2023"]
[White "Itgelt, Khuyagtsogt"]
[Black "Xie, Bryan"]
[WhiteFideId "4902912"]
[BlackFideId "30941296"]
[WhiteElo "2227"]
[BlackElo "2033"]
[Result "1-0"]
[Round "1"]
[TimeControl "180+2"]
[Date "2023.06.06"]
[WhiteClock "0:00:34"]
[BlackClock "0:00:03"]
[Board "102"]

1. d4 {[%clk 0:02:58]}  d5 {[%clk 0:02:56]} 2. c4 {[%clk 0:02:58]}  e6 {[%clk 0:02:55]} 3. Nf3 {[%clk 0:02:59]}  dxc4 {[%clk 0:02:54]} 4. Qa4+ {[%clk 0:02:58]}  Nd7 {[%clk 0:02:41]} 5. Qxc4 {[%clk 0:02:57]}  Ngf6 {[%clk 0:02:40]} 6. g3 {[%clk 0:02:56]}  c5 {[%clk 0:02:41]} 7. Bg2 {[%clk 0:02:56]}  cxd4 {[%clk 0:02:41]} 8. Nxd4 {[%clk 0:02:52]}  Be7 {[%clk 0:02:42]} 9. O-O {[%clk 0:02:52]}  O-O {[%clk 0:02:42]} 10. Rd1 {[%clk 0:02:51]}  Qb6 {[%clk 0:01:57]} 11. Nc3 {[%clk 0:02:35]}  Ne5 {[%clk 0:01:55]} 12. Qb3 {[%clk 0:02:26]}  Qxb3 {[%clk 0:01:13]} 13. Nxb3 {[%clk 0:02:11]}  Nc6 {[%clk 0:00:48]} 14. Bg5 {[%clk 0:01:59]}  h6 {[%clk 0:00:46]} 15. Bxf6 {[%clk 0:01:45]}  Bxf6 {[%clk 0:00:47]} 16. Rac1 {[%clk 0:01:46]}  Rd8 {[%clk 0:00:37]} 17. Rxd8+ {[%clk 0:01:37]}  Nxd8 {[%clk 0:00:38]} 18. Nc5 {[%clk 0:01:26]}  Bd4 {[%clk 0:00:19]} 19. Nb5 {[%clk 0:01:19]}  Bxc5 {[%clk 0:00:14]} 20. Rxc5 {[%clk 0:01:19]}  Bd7 {[%clk 0:00:15]} 21. Nd6 {[%clk 0:01:07]}  Bc6 {[%clk 0:00:08]} 22. Bxc6 {[%clk 0:01:03]}  bxc6 {[%clk 0:00:08]} 23. b3 {[%clk 0:00:59]}  Kf8 {[%clk 0:00:06]} 24. e4 {[%clk 0:00:58]}  Ke7 {[%clk 0:00:05]} 25. e5 {[%clk 0:00:58]}  Rb8 {[%clk 0:00:05]} 26. f4 {[%clk 0:00:57]}  Kd7 {[%clk 0:00:06]} 27. Ra5 {[%clk 0:00:56]}  Ra8 {[%clk 0:00:04]} 28. Kf2 {[%clk 0:00:56]}  Kc7 {[%clk 0:00:04]} 29. Ra6 {[%clk 0:00:48]}  f5 {[%clk 0:00:03]} 30. Ke3 {[%clk 0:00:45]}  Nb7 {[%clk 0:00:02]} 31. Nc4 {[%clk 0:00:37]}  Nc5 {[%clk 0:00:02]} 32. Ra5 {[%clk 0:00:34]}  Nb7 {[%clk 0:00:03]} 33. Ra3 {[%clk 0:00:34]} 1-0


[Site "https://www.chess.com"]

[Event "Titled Tuesday Blitz June 6 Early 2023"]
[White "Lopez Del Alamo, Antonio"]
[Black "Amilal Munkhdalai"]
[WhiteFideId "2227339"]
[BlackFideId "4903250"]
[WhiteElo "2175"]
[BlackElo "2293"]
[Result "0-1"]
[Round "1"]
[TimeControl "180+2"]
[Date "2023.06.06"]
[WhiteClock "0:00:07"]
[BlackClock "0:00:34"]
[Board "103"]

1. e4 {[%clk 0:02:57]}  c5 {[%clk 0:02:59]} 2. Nf3 {[%clk 0:02:52]}  Nc6 {[%clk 0:02:58]} 3. b4 {[%clk 0:02:49]}  Nxb4 {[%clk 0:02:58]} 4. c3 {[%clk 0:02:47]}  Nc6 {[%clk 0:02:57]} 5. d4 {[%clk 0:02:47]}  d5 {[%clk 0:02:55]} 6. exd5 {[%clk 0:02:27]}  Qxd5 {[%clk 0:02:54]} 7. Nbd2 {[%clk 0:02:28]}  cxd4 {[%clk 0:02:50]} 8. Bc4 {[%clk 0:02:25]}  Qd8 {[%clk 0:02:46]} 9. O-O {[%clk 0:02:21]}  dxc3 {[%clk 0:02:41]} 10. Qb3 {[%clk 0:02:21]}  e6 {[%clk 0:02:36]} 11. Ne4 {[%clk 0:02:15]}  Nf6 {[%clk 0:02:28]} 12. Bg5 {[%clk 0:02:13]}  Be7 {[%clk 0:02:26]} 13. Bxf6 {[%clk 0:02:10]}  gxf6 {[%clk 0:02:22]} 14. Rad1 {[%clk 0:02:07]}  Qa5 {[%clk 0:02:15]} 15. Bb5 {[%clk 0:01:52]}  O-O {[%clk 0:02:09]} 16. Bxc6 {[%clk 0:01:32]}  bxc6 {[%clk 0:02:08]} 17. Nxc3 {[%clk 0:01:27]}  Ba6 {[%clk 0:02:07]} 18. Rfe1 {[%clk 0:01:24]}  Bb4 {[%clk 0:02:00]} 19. Re3 {[%clk 0:01:23]}  Rab8 {[%clk 0:01:53]} 20. Qc2 {[%clk 0:01:14]}  Rfd8 {[%clk 0:01:52]} 21. Rc1 {[%clk 0:01:13]}  Ba3 {[%clk 0:01:50]} 22. Rce1 {[%clk 0:01:07]}  f5 {[%clk 0:01:38]} 23. Ne5 {[%clk 0:00:56]}  Rb2 {[%clk 0:01:27]} 24. Rg3+ {[%clk 0:00:46]}  Kf8 {[%clk 0:01:26]} 25. Qc1 {[%clk 0:00:42]}  Rbd2 {[%clk 0:01:07]} 26. Qb1 {[%clk 0:00:41]}  Qc5 {[%clk 0:00:47]} 27. Rf3 {[%clk 0:00:17]}  Rb2 {[%clk 0:00:41]} 28. Qc1 {[%clk 0:00:16]}  Rdd2 {[%clk 0:00:40]} 29. h4 {[%clk 0:00:07]}  Ke8 {[%clk 0:00:34]} 0-1


[Site "https://www.chess.com"]

[Event "Titled Tuesday Blitz June 6 Early 2023"]
[White "Veiga, Jose Francisco R P Neves"]
[Black "Koridze, Lile"]
[WhiteFideId "1930087"]
[BlackFideId "13612514"]
[WhiteElo "2319"]
[BlackElo "2047"]
[Result "0-1"]
[Round "1"]
[TimeControl "180+2"]
[Date "2023.06.06"]
[WhiteClock "0:00:50"]
[BlackClock "0:00:39"]
[Board "104"]

1. c4 {[%clk 0:02:25]}  e5 {[%clk 0:02:59]} 2. Nc3 {[%clk 0:02:23]}  Nf6 {[%clk 0:02:59]} 3. Nf3 {[%clk 0:02:23]}  Nc6 {[%clk 0:02:58]} 4. e4 {[%clk 0:02:23]}  Bb4 {[%clk 0:02:58]} 5. d3 {[%clk 0:02:22]}  O-O {[%clk 0:02:57]} 6. g3 {[%clk 0:02:21]}  d6 {[%clk 0:02:57]} 7. Bg2 {[%clk 0:02:22]}  Bg4 {[%clk 0:02:54]} 8. O-O {[%clk 0:02:21]}  Nd4 {[%clk 0:02:53]} 9. Be3 {[%clk 0:02:21]}  Bc5 {[%clk 0:02:52]} 10. a3 {[%clk 0:02:18]}  a5 {[%clk 0:02:52]} 11. Rb1 {[%clk 0:02:18]}  Qd7 {[%clk 0:02:46]} 12. b4 {[%clk 0:02:18]}  axb4 {[%clk 0:02:46]} 13. axb4 {[%clk 0:02:19]}  Bb6 {[%clk 0:02:47]} 14. c5 {[%clk 0:02:05]}  dxc5 {[%clk 0:02:47]} 15. bxc5 {[%clk 0:02:06]}  Bxf3 {[%clk 0:02:37]} 16. Bxf3 {[%clk 0:02:04]}  Bxc5 {[%clk 0:02:37]} 17. Rxb7 {[%clk 0:01:58]}  Qc6 {[%clk 0:02:34]} 18. Bxd4 {[%clk 0:01:42]}  Bxd4 {[%clk 0:02:31]} 19. Rb3 {[%clk 0:01:42]}  Bxc3 {[%clk 0:02:15]} 20. Qc2 {[%clk 0:01:38]}  Rac8 {[%clk 0:01:47]} 21. Rxc3 {[%clk 0:01:36]}  Qd7 {[%clk 0:01:46]} 22. Rc1 {[%clk 0:01:35]}  c5 {[%clk 0:01:42]} 23. Be2 {[%clk 0:01:32]}  Qe6 {[%clk 0:01:23]} 24. Rxc5 {[%clk 0:01:30]}  Rcd8 {[%clk 0:01:21]} 25. Rc6 {[%clk 0:01:26]}  Qh3 {[%clk 0:01:20]} 26. Qc5 {[%clk 0:01:04]}  Ng4 {[%clk 0:01:05]} 27. Bxg4 {[%clk 0:01:04]}  Qxg4 {[%clk 0:01:05]} 28. Rd6 {[%clk 0:01:04]}  Rc8 {[%clk 0:00:57]} 29. Qe3 {[%clk 0:01:03]}  Rxc1+ {[%clk 0:00:55]} 30. Qxc1 {[%clk 0:01:04]}  Rc8 {[%clk 0:00:54]} 31. Qc7 {[%clk 0:00:59]}  h6 {[%clk 0:00:48]} 32. Rd8+ {[%clk 0:00:59]}  Rxd8 {[%clk 0:00:48]} 33. Qxd8+ {[%clk 0:01:00]}  Kh7 {[%clk 0:00:49]} 34. Kg2 {[%clk 0:01:00]}  Qd1 {[%clk 0:00:43]} 35. Qd5 {[%clk 0:00:58]}  f6 {[%clk 0:00:43]} 36. h4 {[%clk 0:00:55]}  Qd2 {[%clk 0:00:41]} 37. Qd7 {[%clk 0:00:53]}  Qd1 {[%clk 0:00:41]} 38. Qf5+ {[%clk 0:00:53]}  Kh8 {[%clk 0:00:39]} 39. Qf4 {[%clk 0:00:50]}  exf4 {[%clk 0:00:39]} 0-1


[Site "https://www.chess.com"]

[Event "Titled Tuesday Blitz June 6 Early 2023"]
[White "Sargissyan, Sargis"]
[Black "Fus, Jakub"]
[WhiteFideId "13303210"]
[BlackFideId "1193023"]
[WhiteElo "2109"]
[BlackElo "2335"]
[Result "0-1"]
[Round "1"]
[TimeControl "180+2"]
[Date "2023.06.06"]
[WhiteClock "0:00:01"]
[BlackClock "0:00:05"]
[Board "105"]

1. e4 {[%clk 0:02:59]}  c6 {[%clk 0:02:58]} 2. Nf3 {[%clk 0:02:55]}  d5 {[%clk 0:02:58]} 3. Nc3 {[%clk 0:02:56]}  Bg4 {[%clk 0:02:53]} 4. h3 {[%clk 0:02:56]}  Bxf3 {[%clk 0:02:53]} 5. Qxf3 {[%clk 0:02:57]}  e6 {[%clk 0:02:53]} 6. Be2 {[%clk 0:02:57]}  Nf6 {[%clk 0:02:49]} 7. O-O {[%clk 0:02:56]}  Be7 {[%clk 0:02:46]} 8. Qg3 {[%clk 0:02:41]}  O-O {[%clk 0:02:40]} 9. e5 {[%clk 0:02:38]}  Nfd7 {[%clk 0:02:40]} 10. d4 {[%clk 0:02:36]}  Kh8 {[%clk 0:02:26]} 11. f4 {[%clk 0:02:01]}  c5 {[%clk 0:02:22]} 12. dxc5 {[%clk 0:01:59]}  Bxc5+ {[%clk 0:02:18]} 13. Kh1 {[%clk 0:01:59]}  Nc6 {[%clk 0:02:18]} 14. Bd3 {[%clk 0:01:54]}  g6 {[%clk 0:02:11]} 15. a3 {[%clk 0:01:43]}  a6 {[%clk 0:01:57]} 16. h4 {[%clk 0:01:41]}  h5 {[%clk 0:01:48]} 17. f5 {[%clk 0:01:24]}  exf5 {[%clk 0:01:39]} 18. Nxd5 {[%clk 0:00:56]}  Ndxe5 {[%clk 0:01:24]} 19. c4 {[%clk 0:00:41]}  Nxd3 {[%clk 0:01:01]} 20. Bg5 {[%clk 0:00:35]}  f6 {[%clk 0:01:01]} 21. Nxf6 {[%clk 0:00:11]}  Rxf6 {[%clk 0:00:58]} 22. Rad1 {[%clk 0:00:08]}  Qf8 {[%clk 0:00:24]} 23. Bxf6+ {[%clk 0:00:06]}  Qxf6 {[%clk 0:00:24]} 24. Rxd3 {[%clk 0:00:07]}  Re8 {[%clk 0:00:23]} 25. Rd5 {[%clk 0:00:06]}  b6 {[%clk 0:00:21]} 26. b4 {[%clk 0:00:06]}  Re3 {[%clk 0:00:12]} 27. Qf2 {[%clk 0:00:06]}  Rh3+ {[%clk 0:00:11]} 28. gxh3 {[%clk 0:00:06]}  Bxf2 {[%clk 0:00:12]} 29. Rxf2 {[%clk 0:00:07]}  Ne5 {[%clk 0:00:06]} 30. Re2 {[%clk 0:00:06]}  Nf7 {[%clk 0:00:06]} 31. Rd7 {[%clk 0:00:05]}  Kg7 {[%clk 0:00:06]} 32. Ree7 {[%clk 0:00:05]}  Qa1+ {[%clk 0:00:03]} 33. Kg2 {[%clk 0:00:05]}  Qb2+ {[%clk 0:00:04]} 34. Kg1 {[%clk 0:00:04]}  Qc1+ {[%clk 0:00:04]} 35. Kg2 {[%clk 0:00:04]}  Qxc4 {[%clk 0:00:04]} 36. Rc7 {[%clk 0:00:03]}  Qa2+ {[%clk 0:00:03]} 37. Kg1 {[%clk 0:00:03]}  Qb3 {[%clk 0:00:04]} 38. Kg2 {[%clk 0:00:03]}  Qa2+ {[%clk 0:00:04]} 39. Kg1 {[%clk 0:00:03]}  a5 {[%clk 0:00:05]} 40. bxa5 {[%clk 0:00:03]}  bxa5 {[%clk 0:00:06]} 41. Kh1 {[%clk 0:00:01]}  a4 {[%clk 0:00:05]} 42. Kg1 {[%clk 0:00:02]}  Kf6 {[%clk 0:00:06]} 43. Red7 {[%clk 0:00:01]}  Qa1+ {[%clk 0:00:03]} 44. Kg2 {[%clk 0:00:01]}  Qe5 {[%clk 0:00:04]} 45. Kg1 {[%clk 0:00:01]}  Kg7 {[%clk 0:00:04]} 46. Kg2 {[%clk 0:00:01]}  Kf6 {[%clk 0:00:04]} 47. Kg1 {[%clk 0:00:02]}  Qe6 {[%clk 0:00:04]} 48. Kg2 {[%clk 0:00:02]}  Ne5 {[%clk 0:00:05]} 49. Rh7 {[%clk 0:00:01]}  Qd5+ {[%clk 0:00:05]} 0-1


[Site "https://www.chess.com"]

[Event "Titled Tuesday Blitz June 6 Early 2023"]
[White "Ashraf, Artin"]
[Black "Korpics, Zsolt"]
[WhiteFideId "22514805"]
[BlackFideId "705241"]
[WhiteElo "2224"]
[BlackElo "2371"]
[Result "1-0"]
[Round "1"]
[TimeControl "180+2"]
[Date "2023.06.06"]
[WhiteClock "0:00:05"]
[BlackClock "0:00:03"]
[Board "110"]

1. d4 {[%clk 0:02:57]}  Nf6 {[%clk 0:02:59]} 2. Nc3 {[%clk 0:02:54]}  d5 {[%clk 0:02:59]} 3. Bf4 {[%clk 0:02:54]}  c5 {[%clk 0:02:54]} 4. e3 {[%clk 0:02:50]}  a6 {[%clk 0:02:51]} 5. Nf3 {[%clk 0:02:33]}  Nc6 {[%clk 0:02:50]} 6. Ne5 {[%clk 0:02:33]}  cxd4 {[%clk 0:02:29]} 7. exd4 {[%clk 0:02:22]}  Bf5 {[%clk 0:02:28]} 8. Nxc6 {[%clk 0:01:52]}  bxc6 {[%clk 0:02:26]} 9. Bd3 {[%clk 0:01:53]}  Bg6 {[%clk 0:01:37]} 10. O-O {[%clk 0:01:49]}  e6 {[%clk 0:01:37]} 11. Na4 {[%clk 0:01:44]}  Bd6 {[%clk 0:01:14]} 12. Bg3 {[%clk 0:01:37]}  O-O {[%clk 0:01:11]} 13. Qe2 {[%clk 0:01:16]}  a5 {[%clk 0:01:08]} 14. Bxd6 {[%clk 0:01:14]}  Qxd6 {[%clk 0:01:07]} 15. Nc5 {[%clk 0:01:10]}  Nd7 {[%clk 0:01:05]} 16. Nxd7 {[%clk 0:01:09]}  Qxd7 {[%clk 0:01:05]} 17. a3 {[%clk 0:01:01]}  Rab8 {[%clk 0:00:50]} 18. Rfb1 {[%clk 0:00:55]}  Qd6 {[%clk 0:00:47]} 19. Qd2 {[%clk 0:00:30]}  Bxd3 {[%clk 0:00:33]} 20. cxd3 {[%clk 0:00:19]}  a4 {[%clk 0:00:28]} 21. Rc1 {[%clk 0:00:17]}  Rb3 {[%clk 0:00:25]} 22. Rc3 {[%clk 0:00:17]}  Rfb8 {[%clk 0:00:24]} 23. Rxb3 {[%clk 0:00:17]}  Rxb3 {[%clk 0:00:24]} 24. Rc1 {[%clk 0:00:17]}  Qb8 {[%clk 0:00:23]} 25. Rxc6 {[%clk 0:00:16]}  h6 {[%clk 0:00:19]} 26. g3 {[%clk 0:00:06]}  Rxb2 {[%clk 0:00:17]} 27. Qa5 {[%clk 0:00:06]}  Qb3 {[%clk 0:00:11]} 28. Rc8+ {[%clk 0:00:04]}  Kh7 {[%clk 0:00:11]} 29. Qc7 {[%clk 0:00:05]}  Rb1+ {[%clk 0:00:11]} 30. Kg2 {[%clk 0:00:05]}  Qxd3 {[%clk 0:00:10]} 31. Qxf7 {[%clk 0:00:03]}  Qe4+ {[%clk 0:00:09]} 32. Kh3 {[%clk 0:00:03]}  Qf5+ {[%clk 0:00:04]} 33. Qxf5+ {[%clk 0:00:03]}  exf5 {[%clk 0:00:05]} 34. Ra8 {[%clk 0:00:04]}  Rb3 {[%clk 0:00:02]} 35. Rxa4 {[%clk 0:00:04]}  Kg6 {[%clk 0:00:03]} 36. Ra6+ {[%clk 0:00:03]}  Kg5 {[%clk 0:00:03]} 37. a4 {[%clk 0:00:02]}  Rb4 {[%clk 0:00:02]} 38. a5 {[%clk 0:00:02]}  Rxd4 {[%clk 0:00:02]} 39. Rd6 {[%clk 0:00:02]}  Ra4 {[%clk 0:00:02]} 40. Rxd5 {[%clk 0:00:02]}  Kf6 {[%clk 0:00:03]} 41. Kg2 {[%clk 0:00:03]}  Ke6 {[%clk 0:00:04]} 42. Rb5 {[%clk 0:00:04]}  g6 {[%clk 0:00:04]} 43. Rb6+ {[%clk 0:00:04]}  Kd5 {[%clk 0:00:04]} 44. Rxg6 {[%clk 0:00:04]}  Rxa5 {[%clk 0:00:02]} 45. Rxh6 {[%clk 0:00:04]}  Ke5 {[%clk 0:00:03]} 46. Rg6 {[%clk 0:00:03]}  Ra8 {[%clk 0:00:02]} 47. f4+ {[%clk 0:00:03]}  Ke4 {[%clk 0:00:02]} 48. Re6+ {[%clk 0:00:03]}  Kd4 {[%clk 0:00:03]} 49. Re5 {[%clk 0:00:04]}  Rf8 {[%clk 0:00:03]} 50. h4 {[%clk 0:00:04]}  Rg8 {[%clk 0:00:03]} 51. h5 {[%clk 0:00:04]}  Rh8 {[%clk 0:00:03]} 52. Rxf5 {[%clk 0:00:05]}  Ke4 {[%clk 0:00:04]} 53. Re5+ {[%clk 0:00:05]}  Kd4 {[%clk 0:00:05]} 54. Kh3 {[%clk 0:00:06]}  Kc4 {[%clk 0:00:05]} 55. g4 {[%clk 0:00:06]}  Kd4 {[%clk 0:00:05]} 56. Kh4 {[%clk 0:00:05]}  Kc4 {[%clk 0:00:05]} 57. g5 {[%clk 0:00:06]}  Kd4 {[%clk 0:00:06]} 58. h6 {[%clk 0:00:06]}  Rf8 {[%clk 0:00:07]} 59. Kg4 {[%clk 0:00:06]}  Rh8 {[%clk 0:00:06]} 60. g6 {[%clk 0:00:03]}  Rxh6 {[%clk 0:00:06]} 61. g7 {[%clk 0:00:03]}  Rg6+ {[%clk 0:00:06]} 62. Rg5 {[%clk 0:00:03]}  Rxg5+ {[%clk 0:00:02]} 63. Kxg5 {[%clk 0:00:03]}  Ke4 {[%clk 0:00:03]} 64. g8=Q {[%clk 0:00:04]}  Kf3 {[%clk 0:00:03]} 65. f5 {[%clk 0:00:05]} 1-0


[Site "https://www.chess.com"]

[Event "Titled Tuesday Blitz June 6 Early 2023"]
[White "Goltsev, Dmitry"]
[Black "Lopez Idarraga, Daniel Eduardo"]
[WhiteFideId "24176710"]
[BlackFideId "4405501"]
[WhiteElo "2356"]
[BlackElo "1980"]
[Result "1/2-1/2"]
[Round "1"]
[TimeControl "180+2"]
[Date "2023.06.06"]
[WhiteClock "0:01:06"]
[BlackClock "0:00:08"]
[Board "112"]

1. e4 {[%clk 0:03:00]}  c5 {[%clk 0:02:58]} 2. Nf3 {[%clk 0:03:00]}  Nc6 {[%clk 0:02:58]} 3. d4 {[%clk 0:03:01]}  cxd4 {[%clk 0:02:59]} 4. Nxd4 {[%clk 0:03:02]}  Nf6 {[%clk 0:02:59]} 5. Nc3 {[%clk 0:03:02]}  g6 {[%clk 0:03:00]} 6. f4 {[%clk 0:03:02]}  d6 {[%clk 0:01:52]} 7. Be2 {[%clk 0:02:58]}  Bg7 {[%clk 0:01:47]} 8. Be3 {[%clk 0:02:57]}  O-O {[%clk 0:01:44]} 9. Nb3 {[%clk 0:02:57]}  e5 {[%clk 0:01:39]} 10. O-O {[%clk 0:02:55]}  exf4 {[%clk 0:01:35]} 11. Bxf4 {[%clk 0:02:56]}  Re8 {[%clk 0:01:35]} 12. Qxd6 {[%clk 0:02:51]}  Qxd6 {[%clk 0:01:33]} 13. Bxd6 {[%clk 0:02:52]}  Nxe4 {[%clk 0:01:34]} 14. Nxe4 {[%clk 0:02:52]}  Rxe4 {[%clk 0:01:35]} 15. Bf3 {[%clk 0:02:51]}  Re6 {[%clk 0:01:34]} 16. Ba3 {[%clk 0:02:50]}  b6 {[%clk 0:01:24]} 17. Rfe1 {[%clk 0:02:44]}  Rxe1+ {[%clk 0:01:22]} 18. Rxe1 {[%clk 0:02:44]}  Bb7 {[%clk 0:01:22]} 19. c3 {[%clk 0:02:42]}  Bf6 {[%clk 0:01:13]} 20. Rf1 {[%clk 0:02:35]}  Kg7 {[%clk 0:01:12]} 21. Bd5 {[%clk 0:02:35]}  Rd8 {[%clk 0:01:11]} 22. c4 {[%clk 0:02:35]}  Rd7 {[%clk 0:01:03]} 23. g3 {[%clk 0:02:19]}  Nd4 {[%clk 0:00:47]} 24. Rxf6 {[%clk 0:02:08]}  Nxb3 {[%clk 0:00:47]} 25. Rxf7+ {[%clk 0:02:02]}  Rxf7 {[%clk 0:00:47]} 26. Bxf7 {[%clk 0:02:03]}  Nc1 {[%clk 0:00:33]} 27. Be6 {[%clk 0:01:55]}  Nxa2 {[%clk 0:00:33]} 28. Kf2 {[%clk 0:01:50]}  Nc1 {[%clk 0:00:30]} 29. Ke3 {[%clk 0:01:45]}  Nb3 {[%clk 0:00:30]} 30. Bd6 {[%clk 0:01:43]}  Kf6 {[%clk 0:00:28]} 31. Bd7 {[%clk 0:01:41]}  Nc5 {[%clk 0:00:22]} 32. Bg4 {[%clk 0:01:35]}  h5 {[%clk 0:00:19]} 33. Bh3 {[%clk 0:01:35]}  Bc6 {[%clk 0:00:18]} 34. Bb8 {[%clk 0:01:34]}  a6 {[%clk 0:00:17]} 35. Ba7 {[%clk 0:01:33]}  Nd7 {[%clk 0:00:12]} 36. Bxd7 {[%clk 0:01:32]}  Bxd7 {[%clk 0:00:13]} 37. Bxb6 {[%clk 0:01:33]}  Ke6 {[%clk 0:00:13]} 38. Kd4 {[%clk 0:01:32]}  Kd6 {[%clk 0:00:14]} 39. Bd8 {[%clk 0:01:30]}  Kc6 {[%clk 0:00:14]} 40. Ke5 {[%clk 0:01:30]}  Bf5 {[%clk 0:00:13]} 41. Be7 {[%clk 0:01:29]}  a5 {[%clk 0:00:12]} 42. Kd4 {[%clk 0:01:27]}  a4 {[%clk 0:00:12]} 43. Kc3 {[%clk 0:01:26]}  Bg4 {[%clk 0:00:10]} 44. Kd4 {[%clk 0:01:20]}  Bf5 {[%clk 0:00:10]} 45. Ke5 {[%clk 0:01:20]}  Bg4 {[%clk 0:00:09]} 46. Bb4 {[%clk 0:01:15]}  Bf5 {[%clk 0:00:09]} 47. Kf6 {[%clk 0:01:15]}  Bd3 {[%clk 0:00:08]} 48. Be7 {[%clk 0:01:11]}  Bf5 {[%clk 0:00:08]} 49. Ke5 {[%clk 0:01:06]}  Bd3 {[%clk 0:00:08]} 50. Kd4 {[%clk 0:01:06]}  Bf5 {[%clk 0:00:08]} 1/2-1/2


[Site "https://www.chess.com"]